bitfinex/quotes_ETHUSD_20240820
["timestamp","ask_amount","ask_price","bid_price","bid_amount"]
[1724128176413,4.5675759,2665.7,2665.2,3.75198]
[1724128177517,4.5675759,2665.7,2665.3,0.13581334]
[1724128178611,5.33438,2665.7,2665.3,0.13581334]
[1724128184231,1.583,2665.7,2665.3,0.13581334]
[1724128186139,1.583,2665.7,2665.3,3.88765334]
[1724128188027,1.583,2665.7,2665.4,2.3669]
[1724128188357,12.0848,2666.1,2665.6,3.75146]
[1724128188560,8.33388,2666.1,2665.6,3.75146]
[1724128188883,1.583,2665.9,2665.7,0.13560311]
[1724128190578,1.583,2665.9,2665.5,3.75163]
[1724128190983,1.583,2665.9,2665.6,0.13568925]
[1724128194879,5.33388,2666.1,2665.6,0.76111118]
[1724128195207,5.33388,2666.1,2665.7,2.4236]
[1724128195705,5.33388,2666.1,2665.8,0.13546898]
[1724128195706,1.583,2666.1,2665.8,0.13546898]
[1724128195905,5.33359,2666.3,2665.7,6.17486]
[1724128196203,5.33359,2666.3,2665.9,0.13534927]
[1724128196423,5.33359,2666.3,2665.8,0.13543539]
[1724128196585,5.33359,2666.3,2665.7,7.18098976]
[1724128196586,5.33359,2666.3,2666.0,0.13526315]
[1724128196785,5.33359,2666.3,2665.9,0.13534927]
[1724128196977,5.33359,2666.3,2666.1,0.13517704]
[1724128197203,6.166949,2666.3,2666.0,0.13526315]
[1724128197510,3.75065,2666.2,2666.1,0.13517704]
[1724128197681,3.75065,2666.2,2665.7,6.17486]
[1724128197865,3.75065,2666.2,2666.1,0.13517704]
[1724128198111,3.75065,2666.2,2665.7,6.17486]
[1724128198368,1.583,2666.3,2666.1,0.13517704]
[1724128198682,5.33351,2666.3,2666.2,0.13509094]
[1724128198884,3.75069,2666.2,2665.7,2.4236]
[1724128199092,7.50142,2666.2,2665.7,2.4236]
[1724128199605,1.583,2666.1,2665.7,2.4236]
[1724128200684,1.583,2666.1,2665.7,6.17495]
[1724128202606,1.583,2666.1,2665.7,10.918879]
[1724128202817,1.583,2666.3,2665.8,3.75119]
[1724128203130,5.33352,2666.3,2665.8,3.75119]
[1724128203302,1.583,2666.3,2665.9,3.75106]
[1724128203627,7.50092,2666.4,2665.9,3.75106]
[1724128203832,3.75046,2666.4,2665.9,3.75106]
[1724128204823,3.75046,2666.4,2665.9,7.50206]
[1724128205126,3.7504,2666.4,2665.9,3.751]
[1724128205326,3.7504,2666.4,2666.0,2.4948]
[1724128205629,4.887074,2666.4,2666.0,2.4948]
[1724128206129,1.583,2666.3,2666.0,2.4948]
[1724128206839,5.33352,2666.3,2666.0,2.4948]
[1724128207388,1.583,2666.3,2666.0,2.4948]
[1724128207692,5.33351,2666.3,2666.0,2.4948]
[1724128208785,1.583,2666.3,2666.0,2.4948]
[1724128209387,2.116337,2666.3,2666.0,2.4948]
[1724128209589,1.583,2666.3,2666.0,2.4948]
[1724128209985,1.583,2666.3,2665.9,3.75099]
[1724128210188,1.583,2666.3,2666.0,3.75091]
[1724128210603,1.583,2666.3,2665.8,6.16349]
[1724128211994,5.33354,2666.3,2665.8,6.16349]
[1724128212307,2.491392,2666.3,2665.8,6.16349]
[1724128212720,2.491392,2666.3,2665.9,3.75105]
[1724128213994,6.241902,2666.3,2665.9,3.75105]
[1724128214335,5.33351,2666.3,2665.9,3.75105]
[1724128214695,1.583,2666.3,2665.9,3.75105]
[1724128214890,6.03339,2666.6,2666.0,3.75093]
[1724128215099,2.2832,2666.6,2666.1,3.75071]
[1724128215309,5.33301,2666.7,2666.2,3.75057]
[1724128215734,5.33301,2666.7,2666.1,6.415281]
[1724128216033,9.08306,2666.7,2666.1,6.415261]
[1724128216240,5.33301,2666.7,2666.1,6.415261]
[1724128216570,5.33301,2666.7,2666.1,10.165981]
[1724128216920,5.33301,2666.7,2666.1,6.415261]
[1724128217465,9.08306,2666.7,2666.2,0.13487267]
[1724128217965,1.583,2666.7,2666.3,3.75051]
[1724128218147,1.583,2666.7,2666.2,0.13487267]
[1724128218148,1.583,2666.5,2666.2,0.13487267]
[1724128218462,1.583,2666.5,2666.4,0.1345614]
[1724128218823,1.583,2666.5,2666.2,3.75063]
[1724128219033,1.583,2666.5,2666.3,0.13464749]
[1724128219233,1.583,2666.5,2666.2,3.75063]
[1724128219462,1.583,2666.5,2666.3,0.13464749]
[1724128219767,1.583,2666.5,2666.2,3.75063]
[1724128219986,1.583,2666.5,2666.4,0.1345614]
[1724128220171,1.583,2666.5,2666.3,0.13464749]
[1724128220355,1.583,2666.5,2666.4,0.1345614]
[1724128220728,1.583,2666.5,2666.2,3.75063]
[1724128220961,1.583,2666.5,2666.4,0.1345614]
[1724128221165,1.583,2666.5,2666.3,0.13464749]
[1724128221364,1.583,2666.5,2666.4,0.1345614]
[1724128221768,1.583,2666.5,2666.2,3.75063]
[1724128221982,1.583,2666.5,2666.4,0.1345614]
[1724128222185,1.583,2666.5,2666.3,0.13464749]
[1724128222332,1.583,2666.5,2666.4,0.1345614]
[1724128222333,6.241529,2666.5,2666.4,0.1345614]
[1724128222533,9.08346,2666.5,2666.4,0.1345614]
[1724128222774,1.583,2666.5,2665.5,8.2290357]
[1724128222958,1.583,2665.6,2665.5,7.42]
[1724128223143,1.97286,2665.6,2665.0,13.63393]
[1724128223481,1.583,2665.4,2665.0,13.63393]
[1724128223666,1.583,2665.4,2665.1,0.80934231]
[1724128223864,1.583,2665.4,2665.0,7.42]
[1724128224425,1.583,2665.4,2665.0,11.17229]
[1724128224629,1.583,2665.4,2665.1,0.80936699]
[1724128224781,1.583,2665.4,2665.1,1.1981657]
[1724128224980,1.583,2665.6,2665.2,0.80933962]
[1724128225185,1.583,2665.6,2665.1,7.4119557]
[1724128225424,1.583,2665.6,2665.2,0.43338599]
[1724128225926,3.8986,2665.8,2665.3,4.56112086]
[1724128226078,3.8986,2665.8,2665.3,3.7518]
[1724128226527,1.583,2666.0,2665.3,3.7518]
[1724128226683,1.583,2666.0,2665.4,1.77773991]
[1724128226877,1.583,2666.0,2665.4,0.9685186]
[1724128226878,3.75096,2666.0,2665.4,0.9685186]
[1724128227118,3.75096,2666.0,2665.4,0.55]
[1724128227119,1.583,2665.8,2665.4,0.55]
[1724128227325,5.33426,2665.8,2665.5,0.13092909]
[1724128227820,5.33426,2665.8,2665.3,3.75191]
[1724128227996,5.33426,2665.8,2665.6,0.13084295]
[1724128228197,5.33426,2665.8,2665.3,3.75191]
[1724128228522,1.583,2665.8,2665.3,4.748386]
[1724128228821,1.583,2665.8,2665.4,0.13101524]
[1724128229731,9.00906,2666.1,2665.5,3.75162]
[1724128229732,3.75093,2666.0,2665.5,3.75162]
[1724128230031,1.583,2665.9,2665.5,3.75162]
[1724128230187,1.583,2665.9,2665.6,0.13084295]
[1724128234631,5.33409,2665.9,2665.6,0.13084295]
[1724128234830,6.768405,2665.9,2665.6,0.13084295]
[1724128235036,6.768405,2665.9,2665.3,7.50363]
[1724128235335,5.33437,2665.7,2665.2,5.70839448]
[1724128235493,1.583,2665.7,2665.4,0.13101524]
[1724128235834,5.33409,2665.9,2665.4,0.13101524]
[1724128236691,3.75123,2665.8,2665.4,0.13101524]
[1724128237134,5.33409,2665.9,2665.4,3.88277524]
[1724128237638,5.33409,2665.9,2665.4,0.13101524]
[1724128237936,5.33436,2665.7,2665.4,0.13101524]
[1724128238141,2.482,2665.6,2665.4,0.13101524]
[1724128238329,2.482,2665.6,2665.1,3.75215]
[1724128238496,2.482,2665.6,2665.5,0.13110056]
[1724128238693,2.482,2665.6,2665.1,3.75215]
[1724128238929,5.33464,2665.5,2665.2,0.13135903]
[1724128239435,5.33464,2665.5,2665.0,11.17232]
[1724128239590,9.0864,2665.5,2665.3,0.13127287]
[1724128239794,6.49148,2665.5,2665.0,3.75234]
[1724128240034,5.33464,2665.5,2665.4,0.13118671]
[1724128240194,9.08635,2665.5,2664.9,8.31426114]
[1724128240402,9.08635,2665.5,2665.4,0.13118671]
[1724128240748,3.75179,2665.4,2664.9,4.56190042]
[1724128240925,5.33464,2665.5,2664.9,8.31426042]
[1724128241111,5.33464,2665.5,2664.9,3.75236]
[1724128241112,9.08637,2665.5,2664.9,3.75236]
[1724128241317,5.33464,2665.5,2664.9,7.50477]
[1724128242333,9.08636,2665.5,2665.0,0.13153137]
[1724128242521,5.33464,2665.5,2665.0,0.13153137]
[1724128243250,9.08637,2665.5,2665.0,0.13153137]
[1724128243612,5.33464,2665.5,2665.0,0.13153137]
[1724128244181,2.3173,2666.0,2665.7,3.75134]
[1724128244326,3.75075,2666.2,2665.5,3.75152]
[1724128244517,1.583,2666.1,2665.8,0.13110655]
[1724128244853,1.583,2666.1,2665.5,3.75152]
[1724128245154,1.583,2666.1,2665.7,2.3635]
[1724128245303,1.583,2666.1,2665.6,0.13125975]
[1724128245508,1.583,2665.9,2665.6,0.13125975]
[1724128245943,1.583,2665.9,2665.3,11.17185]
[1724128246103,5.33416,2665.9,2665.7,0.13117123]
[1724128246306,3.7514,2665.7,2665.3,7.42]
[1724128246552,1.583,2665.5,2665.4,0.13142966]
[1724128246809,5.33464,2665.5,2665.4,0.13142966]
[1724128246959,5.33464,2665.5,2665.0,11.17232]
[1724128247267,5.33464,2665.5,2665.4,0.1313558]
[1724128247426,5.33464,2665.5,2665.0,3.75232]
[1724128247629,5.33464,2665.5,2665.4,0.1313558]
[1724128247834,5.33464,2665.5,2665.0,3.75232]
[1724128248050,5.33464,2665.5,2665.4,0.13140107]
[1724128248215,5.33464,2665.5,2665.0,3.75232]
[1724128248428,3.75164,2665.5,2665.4,0.13140107]
[1724128248655,3.75164,2665.5,2665.0,3.75232]
[1724128248858,3.75164,2665.5,2665.4,0.13140107]
[1724128249158,3.75164,2665.5,2665.0,3.75232]
[1724128249328,3.75164,2665.5,2665.4,0.13140107]
[1724128249534,3.75164,2665.5,2665.0,3.75232]
[1724128249726,3.75164,2665.5,2665.4,0.13140107]
[1724128249916,7.50287,2665.7,2665.0,3.75232]
[1724128250121,0.750287,2665.6,2665.1,3.88384956]
[1724128250316,7.50285,2665.7,2665.1,3.88384956]
[1724128250534,3.7514,2665.7,2665.1,3.88384956]
[1724128250731,3.75126,2665.8,2665.1,3.88376956]
[1724128250979,3.75139,2665.7,2665.1,3.88376956]
[1724128251295,7.50285,2665.7,2665.1,3.88376956]
[1724128251835,7.50284,2665.7,2665.1,3.88376956]
[1724128253382,3.7515,2665.6,2665.1,3.88376956]
[1724128259394,3.75139,2665.7,2665.1,3.88376956]
[1724128259586,3.75139,2665.7,2665.1,7.63588956]
[1724128260774,3.75139,2665.7,2665.1,3.88376956]
[1724128260974,3.75139,2665.7,2665.5,0.00525926]
[1724128261215,0.375139,2665.6,2665.5,0.00525926]
[1724128263088,6.607566,2665.9,2665.5,0.00525926]
[1724128263289,3.75124,2665.8,2665.5,0.00525926]
[1724128265076,3.75137,2665.7,2665.5,0.00525926]
[1724128266174,7.50281,2665.7,2665.5,0.00525926]
[1724128266475,0.750281,2665.6,2665.5,0.00525926]
[1724128266715,2.2875,2665.6,2665.5,0.00525926]
[1724128269221,6.039,2665.6,2665.5,0.00525926]
[1724128270432,7.622,2665.6,2665.5,0.00525926]
[1724128270626,15.125,2665.6,2665.5,0.00525926]
[1724128270828,18.125,2665.6,2665.5,0.00525926]
[1724128271059,20.35603821,2665.6,2665.5,0.00525926]
[1724128273657,16.60453821,2665.6,2665.5,0.00525926]
[1724128273845,15.02153821,2665.6,2665.5,0.00525926]
[1724128274040,8.3345,2665.6,2665.5,0.00525926]
[1724128274283,8.3345,2665.6,2665.5,0.13241349]
[1724128274494,8.3345,2665.6,2665.5,0.00525926]
[1724128274642,8.3345,2665.6,2665.5,0.13241349]
[1724128275294,9.086,2665.6,2665.5,0.13241349]
[1724128275844,5.3345,2665.6,2665.5,0.13241349]
[1724128278590,6.243088,2665.6,2665.5,0.13241349]
[1724128278787,9.994588,2665.6,2665.5,0.13241349]
[1724128278958,6.243088,2665.6,2665.5,0.13241349]
[1724128279563,5.3345,2665.6,2665.5,0.13241349]
[1724128281192,7.6072,2665.6,2665.5,0.13241349]
[1724128281493,11.3587,2665.6,2665.5,0.13241349]
[1724128282277,7.6072,2665.6,2665.5,0.13241349]
[1724128282478,5.3345,2665.6,2665.5,0.13241349]
[1724128283556,1.583,2665.8,2665.5,0.13241349]
[1724128283882,9.086,2665.6,2665.5,0.13241349]
[1724128284103,11.3788,2665.6,2665.5,0.13241349]
[1724128284254,15.1303,2665.6,2665.5,0.13241349]
[1724128285630,9.086,2665.6,2665.5,0.13241349]
[1724128292750,15.1922,2665.6,2665.5,0.13241349]
[1724128292953,16.781503,2665.6,2665.5,0.13241349]
[1724128293477,19.781503,2665.6,2665.5,0.13241349]
[1724128300799,16.030003,2665.6,2665.5,0.13241349]
[1724128300999,13.675303,2665.6,2665.5,0.13241349]
[1724128301976,12.086,2665.6,2665.5,0.13241349]
[1724128302501,9.086,2665.6,2665.5,0.13241349]
[1724128303364,5.3345,2665.6,2665.5,0.13241349]
[1724128303523,9.086,2665.6,2665.5,0.13241349]
[1724128303680,11.5012,2665.6,2665.5,0.13241349]
[1724128303882,12.65132,2665.6,2665.5,0.13241349]
[1724128309308,16.40282,2665.6,2665.5,0.13241349]
[1724128310738,12.65132,2665.6,2665.5,0.13241349]
[1724128311155,16.40282,2665.6,2665.5,0.13241349]
[1724128311932,7.503,2665.6,2665.5,0.13241349]
[1724128312115,9.086,2665.6,2665.5,0.13241349]
[1724128316560,14.5409,2665.6,2665.5,0.13241349]
[1724128316741,18.77791827,2665.6,2665.5,0.00525926]
[1724128316943,21.0308531,2665.6,2665.5,0.00525926]
[1724128321454,20.54533483,2665.6,2665.5,0.00525926]
[1724128321972,14.33893483,2665.6,2665.5,0.00525926]
[1724128322927,12.086,2665.6,2665.5,0.12748164]
[1724128323124,12.086,2665.6,2665.5,0.00525926]
[1724128324152,15.8375,2665.6,2665.5,0.00525926]
[1724128324762,18.73031827,2665.6,2665.5,0.00525926]
[1724128324967,20.9784731,2665.6,2665.5,0.00525926]
[1724128325376,24.7299731,2665.6,2665.5,0.00525926]
[1724128325544,20.9784731,2665.6,2665.5,0.00525926]
[1724128326582,24.7299731,2665.6,2665.5,0.00525926]
[1724128328493,26.9489731,2665.6,2665.5,0.00525926]
[1724128329286,26.9489731,2665.6,2665.5,9.26e-06]
[1724128329287,30.7004731,2665.6,2665.5,9.26e-06]
[1724128329658,26.9489731,2665.6,2665.5,9.26e-06]
[1724128334725,23.1469731,2665.6,2665.5,9.26e-06]
[1724128334904,26.9489731,2665.6,2665.5,9.26e-06]
[1724128336092,30.7004731,2665.6,2665.5,9.26e-06]
[1724128336303,31.2504731,2665.6,2665.5,9.26e-06]
[1724128338158,7.50524,2664.8,2664.7,2.439]
[1724128340453,7.5058,2664.6,2664.5,2.5926227]
[1724128340659,18.8136,2664.6,2664.5,0.1297227]
[1724128340936,18.8136,2664.6,2664.5,6.13e-06]
[1724128340937,24.8244,2664.6,2664.5,6.13e-06]
[1724128341151,24.8244,2664.6,2663.9,2.4629]
[1724128341152,11.26125,2664.0,2663.9,2.4629]
[1724128341479,3.802,2664.0,2663.9,0.11551704]
[1724128341678,3.802,2664.0,2662.5,0.78375473]
[1724128341679,3.75531,2662.9,2662.5,0.78375473]
[1724128341965,3.7551,2663.1,2662.6,2.4629]
[1724128342108,3.7551,2663.1,2662.6,2.79022025]
[1724128342311,7.51021,2663.1,2662.6,2.79022025]
[1724128342538,3.7551,2663.1,2662.6,2.79022025]
[1724128342756,3.75536,2662.9,2662.6,2.4629]
[1724128342946,3.7556,2662.7,2662.2,2.4418]
[1724128343155,3.75536,2662.9,2662.2,6.198]
[1724128343453,7.51077,2662.9,2662.2,7.193438]
[1724128343751,3.75536,2662.9,2662.2,7.193438]
[1724128343959,3.75536,2662.9,2662.2,7.143438]
[1724128344106,3.75536,2662.9,2662.3,3.75614]
[1724128344302,3.75536,2662.9,2662.4,0.63611369]
[1724128344720,7.51021,2663.1,2662.4,0.63611369]
[1724128344939,7.51021,2663.1,2662.4,4.39211369]
[1724128345146,3.75507,2663.1,2662.4,4.39211369]
[1724128345563,7.51021,2663.1,2662.4,4.39211369]
[1724128345771,7.5085,2663.7,2663.0,3.75515]
[1724128345918,3.75422,2663.7,2663.0,3.75515]
[1724128346265,3.75432,2663.6,2663.0,3.75515]
[1724128346459,3.75422,2663.7,2663.1,3.75493]
[1724128346614,3.75422,2663.7,2663.2,3.75484]
[1724128347047,3.75422,2663.7,2663.3,2.3082]
[1724128347251,7.50852,2663.7,2663.3,2.3082]
[1724128347468,3.75422,2663.7,2663.3,2.3082]
[1724128348075,6.75397,2663.9,2663.3,2.3082]
[1724128348276,3.0,2663.8,2663.3,2.3082]
[1724128348478,6.75408,2663.8,2663.4,0.1120978]
[1724128349076,3.75408,2663.8,2663.4,0.1120978]
[1724128349244,7.55581,2664.0,2663.4,4.48408058]
[1724128349570,3.0,2664.1,2663.5,3.75444]
[1724128349756,3.75378,2664.0,2663.5,3.75444]
[1724128349960,3.75378,2664.0,2663.6,0.11192525]
[1724128350160,7.55578,2664.0,2663.6,0.11192525]
[1724128350360,7.55578,2664.0,2663.3,13.48285]
[1724128350361,8.611358,2664.0,2663.3,13.48285]
[1724128350575,8.611358,2664.0,2663.7,0.11183899]
[1724128350746,3.75404,2663.8,2663.3,13.48285]
[1724128351073,3.75404,2663.8,2663.3,17.23751]
[1724128351267,3.75404,2663.8,2663.3,13.48285]
[1724128351768,3.75425,2663.7,2663.3,9.7282]
[1724128352588,3.75435,2663.6,2663.3,9.7282]
[1724128352899,3.75404,2663.8,2663.3,9.7282]
[1724128353053,3.75404,2663.8,2663.3,7.42]
[1724128353255,3.75459,2663.4,2663.3,7.42]
[1724128353521,7.55625,2663.7,2663.1,6.16249]
[1724128353797,7.50854,2663.7,2663.1,6.16249]
[1724128354015,3.75398,2663.9,2663.3,3.75473]
[1724128354157,3.0,2663.8,2663.1,6.16249]
[1724128354363,3.0,2663.8,2663.1,10.533669]
[1724128354364,3.75419,2663.7,2663.1,10.533669]
[1724128354565,3.75419,2663.7,2663.1,6.778739]
[1724128354789,3.75419,2663.7,2663.1,10.533669]
[1724128355300,3.75419,2663.7,2663.1,10.533679]
[1724128355515,3.75419,2663.7,2663.1,6.778739]
[1724128355803,3.7544,2663.6,2663.2,0.6778739]
[1724128356005,3.7544,2663.6,2663.1,2.4076]
[1724128356158,3.7544,2663.6,2663.1,6.1626]
[1724128357206,7.509,2663.5,2663.1,2.4076]
[1724128357816,2.39,2663.1,2662.0,3.75646]
[1724128358115,2.39,2663.1,2662.4,3.75593]
[1724128358116,6.75508,2663.1,2662.4,3.75593]
[1724128358258,6.75508,2663.1,2662.6,2.3681]
[1724128358463,6.75508,2663.1,2662.6,6.12379]
[1724128358817,3.802,2663.2,2662.6,6.12373]
[1724128358818,3.75488,2663.2,2662.6,6.12373]
[1724128359107,7.50965,2663.3,2662.7,4.367883]
[1724128359260,7.50965,2663.3,2662.6,2.3681]
[1724128359261,3.75538,2662.9,2662.6,2.3681]
[1724128359461,3.75554,2662.8,2662.6,2.3681]
[1724128360296,3.75558,2662.7,2662.6,2.3681]
[1724128360612,3.75573,2662.6,2662.2,2.3681]
[1724128361413,3.7559,2662.5,2662.2,2.3681]
[1724128361918,7.51156,2662.6,2662.2,2.3681]
[1724128362125,3.75573,2662.6,2662.2,2.3681]
[1724128362418,3.75573,2662.6,2662.3,0.10640248]
[1724128362586,7.51157,2662.6,2662.3,0.10640248]
[1724128362910,3.75573,2662.6,2662.4,0.10631613]
[1724128363112,3.75573,2662.6,2662.2,2.3681]
[1724128363290,3.75587,2662.5,2662.2,2.3681]
[1724128363818,7.51159,2662.6,2662.2,2.3681]
[1724128364121,3.75602,2662.4,2662.2,2.3681]
[1724128364477,7.51211,2662.4,2661.9,9.8112]
[1724128365101,3.75602,2662.4,2661.9,9.8112]
[1724128365413,7.5121,2662.4,2661.9,9.8112]
[1724128365598,7.51266,2662.2,2661.9,9.8112]
[1724128365803,3.75629,2662.2,2661.9,9.8112]
[1724128367587,3.75629,2662.2,2661.9,7.42]
[1724128368595,3.7561,2662.4,2661.8,3.8865027]
[1724128369508,3.75617,2662.3,2661.8,3.8865027]
[1724128369835,3.7561,2662.4,2661.8,4.89677497]
[1724128370009,3.7558,2662.6,2662.0,2.4593]
[1724128370330,3.7558,2662.6,2662.0,6.21579]
[1724128370331,3.75587,2662.5,2662.0,6.21579]
[1724128370734,6.75553,2662.8,2662.1,3.75641]
[1724128370935,6.75553,2662.8,2662.3,3.75612]
[1724128370936,7.51109,2662.8,2662.3,3.75612]
[1724128371244,3.75561,2662.7,2662.1,3.7563]
[1724128371413,3.75574,2662.6,2662.1,3.7563]
[1724128371593,3.75574,2662.6,2662.1,4.76657227]
[1724128371933,7.5111,2662.8,2662.1,4.76657227]
[1724128372090,3.75553,2662.8,2662.1,4.76657227]
[1724128372290,3.75572,2662.6,2662.1,4.76657227]
[1724128373038,3.75572,2662.6,2662.1,8.52292227]
[1724128374536,3.75572,2662.6,2662.1,4.76657227]
[1724128374741,3.75572,2662.6,2662.1,3.7563]
[1724128375233,3.75587,2662.5,2662.1,3.7563]
[1724128375423,7.51157,2662.6,2662.1,3.7563]
[1724128376229,3.75587,2662.5,2662.0,2.4593]
[1724128376437,3.75587,2662.5,2662.0,6.21587]
[1724128376611,0.751159,2662.4,2662.0,2.4593]
[1724128376810,3.75616,2662.3,2662.0,2.4593]
[1724128377012,7.51242,2662.3,2662.0,2.4593]
[1724128377214,3.75616,2662.3,2662.0,2.4593]
[1724128377421,3.75616,2662.3,2662.1,0.10695017]
[1724128377797,3.75596,2662.5,2662.1,0.10695017]
[1724128378003,3.7557,2662.7,2662.1,0.73924219]
[1724128378201,3.75579,2662.6,2662.1,3.86337017]
[1724128378600,3.7557,2662.7,2662.2,3.75626]
[1724128379028,3.7557,2662.7,2662.3,0.10708447]
[1724128379221,7.51074,2662.9,2662.4,2.3987]
[1724128379422,3.75535,2662.9,2662.5,0.10689536]
[1724128379621,3.7556,2662.7,2662.5,0.10689536]
[1724128379862,3.75572,2662.6,2662.5,0.10689536]
[1724128380162,3.75572,2662.6,2662.1,2.3987]
[1724128380320,3.75572,2662.6,2662.5,0.10685784]
[1724128380516,3.75572,2662.6,2662.1,6.15507]
[1724128380720,3.75572,2662.6,2662.5,0.10685784]
[1724128380921,3.75572,2662.6,2662.1,2.3987]
[1724128381120,3.75572,2662.6,2662.5,0.10684846]
[1724128381357,3.75572,2662.6,2662.1,6.15511]
[1724128381566,3.7556,2662.7,2662.5,0.10684846]
[1724128381757,3.7556,2662.7,2662.1,6.15511]
[1724128382058,3.7556,2662.7,2662.6,0.10676213]
[1724128382218,3.7556,2662.7,2662.2,3.75627]
[1724128382420,3.7556,2662.7,2662.6,0.10676213]
[1724128382658,3.7556,2662.7,2662.2,3.75627]
[1724128382862,7.51127,2662.7,2662.2,3.75627]
[1724128383060,3.7556,2662.7,2662.2,3.75627]
[1724128383260,7.55739,2662.9,2662.3,3.86314116]
[1724128383462,7.55739,2662.9,2662.4,3.75599]
[1724128383667,7.5108,2662.9,2662.5,0.10683674]
[1724128383968,3.75539,2662.9,2662.5,0.10683674]
[1724128384353,6.75511,2663.1,2662.5,3.86260674]
[1724128384552,6.75511,2663.1,2662.5,4.50301543]
[1724128384953,3.75532,2662.9,2662.5,0.74724543]
[1724128385670,3.75545,2662.8,2662.5,0.10683674]
[1724128385992,7.51099,2662.8,2662.3,2.3987]
[1724128386203,7.51099,2662.8,2662.6,0.10669649]
[1724128386345,3.75558,2662.7,2662.6,0.10669649]
[1724128386526,3.75558,2662.7,2662.3,2.3987]
[1724128386728,3.75558,2662.7,2662.6,0.10669649]
[1724128386951,3.75575,2662.6,2662.3,2.3987]
[1724128387372,3.75575,2662.6,2662.0,9.91162]
[1724128387579,3.75575,2662.6,2662.0,6.15514]
[1724128387774,3.75575,2662.6,2662.0,9.91164]
[1724128388273,3.75575,2662.6,2662.1,3.75643]
[1724128388471,7.51156,2662.6,2662.1,3.75643]
[1724128389034,3.75575,2662.6,2662.1,3.75643]
[1724128389770,3.75589,2662.5,2662.0,2.3987]
[1724128390076,3.75589,2662.5,2662.0,6.15519]
[1724128390271,3.75589,2662.5,2662.0,6.15518]
[1724128392074,7.51186,2662.5,2662.0,6.15518]
[1724128392387,7.51186,2662.5,2662.1,0.10715871]
[1724128392677,3.75589,2662.5,2662.1,0.10715871]
[1724128393571,3.75564,2662.7,2662.1,3.86358871]
[1724128393778,3.75564,2662.7,2662.1,0.10715871]
[1724128393976,3.75583,2662.6,2662.1,0.10715871]
[1724128394182,3.75589,2662.5,2662.1,0.10715871]
[1724128394753,7.51188,2662.5,2662.1,0.10715871]
[1724128394998,3.75589,2662.5,2662.1,0.10715871]
[1724128395341,4.511679,2662.5,2662.1,0.10715871]
[1724128395536,3.75582,2662.6,2662.0,3.75643]
[1724128395736,3.75582,2662.6,2662.2,0.10705273]
[1724128395971,3.75568,2662.7,2662.1,6.3471791]
[1724128396277,3.75567,2662.7,2662.2,0.10705274]
[1724128397088,7.51135,2662.7,2662.2,0.10705274]
[1724128397238,7.51134,2662.7,2662.2,0.10705274]
[1724128397578,3.75567,2662.7,2662.2,3.86329274]
[1724128397779,3.75567,2662.7,2662.2,4.87363501]
[1724128398181,3.7549,2663.2,2662.2,4.87363501]
[1724128398182,2.2937,2663.3,2662.3,3.10975588]
[1724128398392,3.75486,2663.3,2662.7,3.75549]
[1724128398541,3.75486,2663.3,2662.7,7.51099]
[1724128398739,3.75486,2663.3,2662.8,0.10653001]
[1724128399176,3.75486,2663.3,2662.7,3.75549]
[1724128399381,3.75486,2663.3,2662.9,0.10642024]
[1724128399597,3.75484,2663.3,2662.8,0.10650656]
[1724128399741,3.75465,2663.4,2663.0,0.10633393]
[1724128399939,3.75465,2663.4,2663.0,2.2994]
[1724128400241,3.75437,2663.6,2663.1,0.10624763]
[1724128400443,3.75447,2663.5,2663.1,0.10624763]
[1724128400977,3.75461,2663.4,2663.1,0.10624763]
[1724128401763,3.75461,2663.4,2662.8,3.75536]
[1724128401976,3.75461,2663.4,2663.2,0.10605819]
[1724128402201,3.75461,2663.4,2662.8,3.75536]
[1724128402407,3.75461,2663.4,2663.3,0.1059719]
[1724128402703,3.75437,2663.6,2663.3,0.1059719]
[1724128402906,3.75447,2663.5,2662.9,3.75521]
[1724128403107,3.75462,2663.4,2662.8,3.75536]
[1724128403262,3.75462,2663.4,2662.8,7.51071]
[1724128403663,3.75462,2663.4,2662.9,3.75521]
[1724128404103,7.50878,2663.6,2663.0,3.75513]
[1724128404287,3.75425,2663.7,2663.2,3.75486]
[1724128405055,3.75405,2663.8,2663.2,7.50966]
[1724128405208,3.75405,2663.8,2663.2,3.7548]
[1724128405503,7.50817,2663.8,2663.2,3.7548]
[1724128405705,8.939187,2663.8,2663.2,3.7548]
[1724128406098,3.7542,2663.7,2663.2,3.7548]
[1724128406493,3.7542,2663.7,2663.1,2.3678]
[1724128406692,3.7542,2663.7,2663.1,6.12278]
[1724128407323,3.7542,2663.7,2663.2,0.10586365]
[1724128407911,5.185067,2663.8,2663.2,3.86072365]
[1724128408113,5.185067,2663.8,2663.3,3.75472]
[1724128408322,3.0,2663.9,2663.5,2.3983]
[1724128408616,6.75394,2663.9,2663.5,2.3983]
[1724128408827,6.75394,2663.9,2663.6,0.10548806]
[1724128408985,3.75404,2663.8,2663.6,0.10548806]
[1724128409190,4.804819,2663.8,2663.6,0.10548806]
[1724128409426,1.050779,2663.8,2663.2,7.42]
[1724128409632,3.75438,2663.6,2663.2,7.42]
[1724128410194,3.75453,2663.5,2663.2,7.42]
[1724128410786,3.75473,2663.4,2663.2,7.42]
[1724128410988,7.50948,2663.3,2663.2,7.42]
[1724128411225,3.75474,2663.3,2662.8,2.3457]
[1724128411523,0.750926,2663.4,2662.8,2.3457]
[1724128411524,4.505546,2663.4,2662.9,3.75526]
[1724128411824,3.75462,2663.4,2662.9,7.51049]
[1724128412031,3.75449,2663.5,2663.0,3.75515]
[1724128412334,3.75467,2663.4,2662.9,3.75523]
[1724128412635,3.75448,2663.5,2663.0,3.75514]
[1724128412798,3.75448,2663.5,2662.9,7.51045]